Cogmind - Beta 17 @@@ ROGUE MODE // 2026.07.12 @ 17:47:05 Player: Artackni Result: Destroyed by S-10 Pest with Autogun Performance ------------- Evolutions (0) 0 Regions Visited (2) 400 Robots Destroyed (43) 215 Value Destroyed (1067) 1067 Prototype IDs (19) 380 Alien Tech Used (0) 0 Bonus (5812) 5812 TOTAL SCORE: 7874 Bonus ------- Prayed to X0-1V1 5000 Major X0-1V1 Interference 850 Friendly Fire -38 Cogmind --------- Core Integrity 0/150 Matter 89/300 Energy 310/310 System Corruption 34% Temperature Cool (0) Movement Treading (320) Ox2 Location -10/Subcaves Parts ------- > --- POWER (1) -------- Cooled Deuterium Engine (fused) > --- PROPULSION (2) --- Improved Treads > --- UTILITY (2) ------ High-capacity Storage Unit Self-contained Transmogrifier > --- WEAPON (2) ------- Subdweller Machine Gun Barrage Gun > --- INVENTORY (21) --- Ion Engine Light Ion Engine Light Treads Light Treads Light Treads Light Treads Improved Treads Spiked Treads Flight Unit Improved Heat Sink Seismic Detector Light Armor Plating Gun Armor Medium Laser Light Cannon Heavy Hammer Makeshift Spear Peak State ------------ > --- POWER ------------ Cooled Deuterium Engine > --- PROPULSION ------- Nuclear Pulse Thruster Nuclear Pulse Thruster > --- UTILITY ---------- High-capacity Storage Unit Self-contained Transmogrifier > --- WEAPON ----------- Heavy Assault Cannon > --- INVENTORY -------- Ion Engine Light Ion Engine Light Treads Light Treads Light Treads Light Treads Improved Treads Improved Treads Improved Treads Spiked Treads Flight Unit Improved Heat Sink Seismic Detector Light Armor Plating Gun Armor Medium Laser Subdweller Machine Gun Barrage Gun Light Cannon Heavy Hammer Makeshift Spear [Rating: 35] Favorites ----------- Power Light Ion Engine Engine Light Ion Engine Propulsion Light Treads Treads Light Treads Wheel Wheel Flight Unit Improved VTOL Module Utility High-capacity Storage Unit Device X0-1V1's Piety Tracker Storage High-capacity Storage Unit Weapon Light Cannon Energy Gun Medium Laser Energy Cannon Beam Cannon Ballistic Gun Assault Rifle Ballistic Cannon Light Cannon Impact Weapon Heavy Hammer Build | -11 -10 -10 ------- Run | Yrd Mat Sub Slots Evolved . | . . . Power . | . . . Propulsion . | . . . Utility . | . . . Weapon . | . . . Parts Attached 28 | 9 10 9 Power 3 | 1 1 1 Engine 3 | 1 1 1 Core . | . . . Reactor . | . . . Propulsion 9 | 4 3 2 Treads 5 | . 3 2 Leg . | . . . Wheel 4 | 4 . . Hover . | . . . Flight . | . . . Utility 7 | 2 4 1 Device 4 | 1 2 1 Storage 3 | 1 2 . Processor . | . . . Hackware . | . . . Protection . | . . . Artifact . | . . . Weapon 9 | 2 2 5 Energy Gun 1 | 1 . . Energy Cannon 1 | . 1 . Ballistic Gun 3 | 1 . 2 Ballistic Cannon 3 | . 1 2 Launcher . | . . . Special Weapon . | . . . Impact Weapon 1 | . . 1 Slashing Weapon . | . . . Piercing Weapon . | . . . Special Melee Weapon . | . . . Unidentified Prototypes 2 | . 1 1 Parts Lost 5 | . 1 4 Power . | . . . Propulsion 1 | . . 1 Utility 1 | . 1 . Weapon 3 | . . 3 Highest Loss Streak 2 | . 1 2 To Critical Strikes . | . . . Average Backups 13 | 3 10 16 Power 1 | . 1 1 Propulsion 6 | 2 4 8 Utility 2 | . 1 3 Weapon 3 | . 2 3 Tool/Special . | . . . Unused Backups 17 | . 4 13 Power 1 | . . 1 Propulsion 7 | . 1 6 Utility 3 | . . 3 Weapon 6 | . 3 3 Tool/Special . | . . . Average Slot Usage (%) 95 | . 99 91 Engine 14 | . 14 14 Treads 20 | . 22 18 Wheel 5 | . 5 5 Flight 1 | . . 1 Device 13 | . 13 13 Storage 14 | . 14 14 Energy Gun 2 | . 5 . Energy Cannon 4 | . 8 1 Ballistic Gun 2 | . 5 . Ballistic Cannon 14 | . 8 19 Impact Weapon 1 | . . 2 Peak Build Rating 35 | 7 22 35 Average Rating 17 | 5 9 24 On Entrance 9 | . 7 22 Avg Prop Armor Cover (%) 4 | . . 4 Naked Turns . | . . . Heaviest Build 63 | 15 50 63 Greatest Support 43 | 32 43 43 Greatest Overweight (x) 6 | . 1 6 Average Overweight (x) 1 | . . 2 Largest Inventory Capacity 21 | 8 20 21 Average Capacity 16 | 7 11 20 Most Carried 21 | 8 17 21 Average Carried 13 | 4 10 16 Final Capacity 21 | 8 20 21 Final Carried 17 | 8 17 17 Transmogrified Parts 11 | . . 11 Integrity Recovered 166 | . . 166 Class Distribution -------------------- 100% | Mutant Dominant Class ---------------- Mutant | -10/Materials Mutant | -10/Subcaves Resources | -11 -10 -10 ----------- Run | Yrd Mat Sub Matter Collected 1049 | 312 332 405 Remotely . | . . . Salvage Created 1215 | 81 888 246 Parts 89 | 11 57 21 Haulers Intercepted 2 | . 2 . Recyclers Shooed 1 | 1 . . Parts Field Recycled . | . . . Retrieved Matter . | . . . Parts Self-Destructed 19 | . . 19 Prevented . | . . . Parts Restored . | . . . Kills | -11 -10 -10 ------- Run | Yrd Mat Sub Combat Hostiles Destroyed 34 | . 25 9 Guns 15 | . 14 1 Cannons 19 | . 11 8 Classes Destroyed 9 | 2 4 3 Worker 2 | 1 1 . Tunneler 4 | 4 . . Hauler 2 | . 2 . Turret 1 | . . 1 Swarmer 10 | . 8 2 Grunt 16 | . 14 2 Cobbler 1 | . . 1 Subdweller 8 | . 3 5 Scientist 1 | . . 1 Best Kill Streak 6 | 5 6 3 Combat Bots Only 6 | . 6 2 Max Kills in Single Turn 2 | 2 2 1 Gunslinging . | . . . Exploded . | . . . Melee . | . . . Uniques/NPCs Destroyed . | . . . Combat | -11 -10 -10 -------- Run | Yrd Mat Sub Hostile Shots Fired 249 | . 91 158 Missed 79 | . 25 54 Hits 170 | . 66 104 Projectile 170 | . 66 104 Critical Strikes 1 | . 1 . Damage Taken 2026 | . 763 1263 Core 290 | . 109 181 Absorbed by Shields . | . . . Core Remaining (%) 100 | 100 . . Volleys Fired 140 | 14 72 54 Largest 2 | 2 2 2 Hottest 90 | 70 90 90 Shots Fired 249 | 28 144 77 Gun 138 | 28 102 8 Cannon 111 | . 42 69 Launcher . | . . . Special . | . . . Kinetic 157 | 14 72 71 Thermal 92 | 14 72 6 Explosive . | . . . Electromagnetic . | . . . Robot Hit Streak 26 | 10 26 13 Robot Miss Streak 6 | 3 3 6 Penetration Max . | . . . Secondary Targets 2 | . 2 . Max Gunslinging Chain 1 | . 1 . Shots Hit Robots 166 | 19 97 50 Core Hits 61 | 6 39 16 Critical Kills 1 | . 1 . Critical Parts Destroyed 1 | . 1 . Critical Strikes 9 | 1 5 3 Burn 4 | 1 3 . Destroy 2 | . 2 . Blast 3 | . . 3 Melee Attacks 9 | . . 9 Impact 9 | . . 9 Slashing . | . . . Piercing . | . . . Sneak Attacks . | . . . Combat Hostiles . | . . . Follow-up Attacks . | . . . Damage Inflicted 3040 | 275 1469 1296 Guns 1134 | 275 817 42 Cannons 1906 | . 652 1254 Explosions . | . . . Melee . | . . . Ramming . | . . . Kinetic 2029 | 111 711 1207 Thermal 1011 | 164 758 89 Explosive . | . . . Electromagnetic . | . . . Impact . | . . . Slashing . | . . . Piercing . | . . . Highest Corruption 34 | . . 34 Average Corruption 29 | . . 29 Corruption Purged . | . . . Corruption Blocked . | . . . Effects 52 | . . 52 Message Errors 15 | . . 15 Matter Fused 8 | . . 8 Heat Flow Errors 3 | . . 3 Energy Discharges 11 | . . 11 Parts Rejected 1 | . . 1 Data Loss (minor) 4 | . . 4 Data Loss (major) 3 | . . 3 Misfires 2 | . . 2 Alerts 1 | . . 1 Weapon Failures 4 | . . 4 Overload Shots . | . . . Overflow Damage 34 | . . 34 Projectiles 34 | . . 34 Explosions . | . . . Melee . | . . . Knockbacks 13 | . 1 12 Impact . | . . . Kinetic 12 | . 1 11 Secondary 1 | . . 1 Self-Inflicted Damage . | . . . Shots . | . . . Rammed . | . . . Targets Rammed . | . . . Kicked . | . . . Crushed . | . . . Highest Temperature 246 | 72 234 246 Average Temperature 48 | 27 48 90 Received Heat Transfer 483 | . 219 264 Siege Activations . | . . . Martial Activations . | . . . Shielding Activations . | . . . Robots Disrupted . | . . . Combat Hostiles . | . . . Robots Corrupted . | . . . Combat Hostiles . | . . . Parts Fried . | . . . Impact Corruptions 1 | . . 1 Robots Melted . | . . . Combat Hostiles . | . . . Parts Melted 3 | 2 1 . Heat Transferred 2923 | 555 2183 185 Parts Sabotaged . | . . . Parts Stolen . | . . . Parts Stripped . | . . . Power Chain Reactions . | . . . Alert | -11 -10 -10 ------- Run | Yrd Mat Sub Maximum Alert Level 1 | . 1 . Low Security (%) 98 | 100 98 . Level 1 1 | . 1 . Level 2 . | . . . Level 3 . | . . . Level 4 . | . . . Level 5 . | . . . High Security . | . . . Max Security . | . . . Peak Influence 215 | 10 215 . Initial . | . . . Average 99 | 1 112 . Influence Increases 697 | 25 562 110 Destroy 0b10 Robot/C 540 | . 440 100 Destroy 0b10 Robot/NC 40 | 25 15 . Destroy Leader 114 | . 104 10 Destroy Structure 3 | . 3 . Influence Decreases 650 | 25 490 135 Entered New Map 36 | . . 36 Time Decay 594 | 25 480 89 Lost Part 20 | . 10 10 Squads Dispatched 5 | . 5 . Investigation 2 | . 2 . Extermination . | . . . Reinforcement 3 | . 3 . Assault . | . . . Garrison . | . . . Intercept . | . . . Searches Triggered . | . . . Construction Impeded . | . . . Haulers Reinforced . | . . . Active Scanning Responses . | . . . Cargo Convoy Interrupts . | . . . Stealth | -11 -10 -10 --------- Run | Yrd Mat Sub Distress Signals 2 | . 2 . Communications Jammed . | . . . Distress Signals . | . . . Times Spotted 50 | . 37 13 Peak Tracking Total 6 | . 5 6 Tactical Retreats . | . . . Traps | -11 -10 -10 ------- Run | Yrd Mat Sub Traps Triggered 3 | . 2 1 Indirectly . | . . . Trap Hack Attempts . | . . . Triggered . | . . . Disarmed . | . . . Reprogrammed . | . . . Reused . | . . . Traps Extracted . | . . . Installed . | . . . Triggered . | . . . Machines | -11 -10 -10 ---------- Run | Yrd Mat Sub Machines Disabled 5 | . . 5 Max in Single Turn 1 | . . 1 Machines Repaired . | . . . Machines Dismantled . | . . . Machines Sabotaged . | . . . Overloaded Fab Kills . | . . . Hacking | -11 -10 -10 --------- Run | Yrd Mat Sub Machines Accessed 2 | . . 2 Terminals . | . . . Fabricators . | . . . Repair Stations . | . . . Recycling Units . | . . . Scanalyzers . | . . . Garrison Access . | . . . Total Hacks 13 | . . 13 Successful 13 | . . 13 Failed . | . . . Catastrophic . | . . . Database Lockouts . | . . . Manual 1 | . 1 . Terminals . | . . . Fabricators . | . . . Repair Stations . | . . . Recycling Units . | . . . Scanalyzers . | . . . Garrison Access . | . . . Terminal Hacks 13 | . . 13 Record 12 | . . 12 Proto ID Catalog 1 | . . 1 Fabricator Hacks . | . . . Repair Station Hacks . | . . . Recycling Unit Hacks . | . . . Scanalyzer . | . . . Garrison Access Hacks . | . . . Unauthorized Hacks . | . . . Terminals . | . . . Fabricators . | . . . Repair Stations . | . . . Recycling Units . | . . . Scanalyzers . | . . . Garrison Access . | . . . Data Cores Recovered . | . . . Used . | . . . Hacking Detections . | . . . Full Trace Events . | . . . Feedback Events . | . . . Feedback Blocked . | . . . Robot Schematics Acquired . | . . . Robots Built . | . . . Authchips . | . . . Time . | . . . Total Robot Build Rating . | . . . Part Schematics Acquired . | . . . Parts Built . | . . . Authchips . | . . . Time . | . . . Total Part Build Rating . | . . . Part Studies Acquired . | . . . Parts Repaired . | . . . Time . | . . . Parts Recycled . | . . . Recycled Matter . | . . . Retrieved Matter . | . . . Retrieved Components . | . . . Parts Scanalyzed . | . . . Part Schematics Acquired . | . . . Parts Damaged . | . . . Bothacking | -11 -10 -10 ------------ Run | Yrd Mat Sub Used RIF Installer . | . . . Robots Hacked . | . . . Non-combat . | . . . Combat . | . . . Robot Hacks Applied . | . . . Relay Couplers Released . | . . . Fabnet Peak Effective % . | . . . Robots Rewired . | . . . Allies Hacked . | . . . Hacks Repelled . | . . . Allies | -11 -10 -10 -------- Run | Yrd Mat Sub Total Allies . | . . . Largest Group . | . . . Highest-Rated Group . | . . . Highest-Rated Ally . | . . . Total Orders . | . . . Ally Attacks . | . . . Total Damage . | . . . Kills . | . . . Allies Corrupted . | . . . Allies Melted . | . . . X0-1V1 Amusement Gains 33 | . 12 21 Good Acts 5 | . . 5 Bad Acts 13 | . . 13 Intel | -11 -10 -10 ------- Run | Yrd Mat Sub Active Infowar (turns) 612 | 81 531 . Seismic 612 | 81 531 . Robot Analysis Total . | . . . Derelict Logs Recovered 1 | . . 1 Drone Launches . | . . . Drone Recoveries . | . . . Exploration | -11 -10 -10 ------------- Run | Yrd Mat Sub Turns Passed 3319 | 163 1297 1859 Spaces Moved 1629 | 115 659 855 Core 9 | 9 . . Treads 936 | . 504 432 Legs . | . . . Wheels 684 | 106 155 423 Hover . | . . . Flight . | . . . Fastest Speed 50 | 50 80 130 Average Speed 169 | 88 153 192 Slowest Speed 240 | 100 240 240 Overloaded Moves . | . . . Propulsion Burnouts . | . . . Robots Hopped . | . . . Potential Cave-ins . | . . . Cave-ins Triggered . | . . . Exploration Rate (%) 53 | 3 88 70 Regions Visited 2 Branch Regions 1 Pre-discovered Areas 1 | . . 1 Known Exits Taken . | . . . Unknown Exits Taken 2 | 1 1 . Scrap Searched 2 | . . 2 Spaces Dug 1 | . . 1 Terrain Destroyed 12 | . . 12 Melee 1 | . . 1 Projectile 11 | . . 11 AOE . | . . . Terrain Rammed . | . . . Walls Destroyed . | . . . Machines Disabled . | . . . Actions | -11 -10 -10 --------- Run | Yrd Mat Sub Total 1902 | 143 803 956 Wait 54 | . 33 21 Move 1627 | 114 658 855 Hop . | . . . Pick Up 27 | 6 15 6 Fast Attach 12 | 7 4 1 Attach 6 | . 1 5 Detach 4 | . 3 1 Swap 10 | 2 5 3 Drop 13 | . 12 1 Fire 140 | 14 72 54 Melee 9 | . . 9 Ram . | . . . Kick . | . . . Crush . | . . . Escape Stasis . | . . . Rewire . | . . . Trap . | . . . Miscellaneous . | . . . Route ------- -11/Scrapyard -10/Materials (discovered 5 exits: [*Mat x3] / [*Min] / *Sub) -10/Subcaves (discovered 2 exits: [*Mat] / *Rec) History --------- Turn | Location | Event 3 | -11/Scrapyard | Discovered new exit (range 14) 164 | -11/Scrapyard | Entered Materials 308 | -10/Materials | Build established: Mutant 637 | -10/Materials | Discovered new exit (range 11) 664 | -10/Materials | Derelicts attacked the area 881 | -10/Materials | Discovered new exit (range 16) 1067 | -10/Materials | Discovered new exit (range 14) 1180 | -10/Materials | Discovered new exit (range 16) 1442 | -10/Materials | Discovered new exit (range 5) 1452 | -10/Materials | Prayed at D.C.S.S. Altar Unit 1461 | -10/Materials | Entered Subcaves 1462 | -10/Subcaves | Approached by a straggling Scientist 1625 | -10/Subcaves | Core integrity fell below 50% 1678 | -10/Subcaves | Inventory capacity permanently improved by X0-1V1 (+1; -100 max core) 1689 | -10/Subcaves | A swath of the cavern ceiling suddenly collapsed 2166 | -10/Subcaves | Learned Materials interactive machine intel 2361 | -10/Subcaves | System corruption reached 10% 2499 | -10/Subcaves | Visited 4L-MR0's lab 2520 | -10/Subcaves | Found Prototype Device 2520 | -10/Subcaves | Identified Sfc. Transmogrifier 2529 | -10/Subcaves | Found Gun Armor 2550 | -10/Subcaves | System corruption reached 30% 2673 | -10/Subcaves | Discovered new exit (range 3) 2687 | -10/Subcaves | Identified exit to Recycling 2687 | -10/Subcaves | Learned location of Section 7 (-3) 2749 | -10/Subcaves | Core integrity restored by X0-1V1 (+37) 3039 | -10/Subcaves | X0-1V1 activates XOMVISION 3132 | -10/Subcaves | Ambushed by angry Subdweller bent on revenge 3276 | -10/Subcaves | X0-1V1 sent you into danger 3315 | -10/Subcaves | Core integrity fell below 20% 3320 | -10/Subcaves | Destroyed by S-10 Pest with Autogun Last Messages --------------- 03285_ Machine disabled. 03289_ Nuclear Pulse Thruster destroyed. 03292_ Destroyed Flight Unit. 03292_ S-10 Pest destroyed. 03295_ Machine disabled. 03296_ Lgt. Ion Engine fries itself beyond repair. X0-1V1's Piety Tracker suddenly appears amidst shimmering waves of color. 03297_ Slug penetrates Autobeam Turret. 03297_ Autobeam Turret knocked back. 03300_ System corrupted: Hvy. Assault Cannon jammed. 03300_ S-10 Pest destroyed. 03301_ System corrupted: Energy discharge (-114). 03305_ Slug penetrates Autobeam Turret. 03305_ Autobeam Turret suffers critical hit (Blast). 03305_ Autobeam Turret destroyed. 03307_ Hvy. Assault Cannon destroyed. 03309_ Machine disabled. 03309_ S-10 Pest destroyed. 03316_ System corrupted: Imp. Treads rejected. 03320_ X0-1V1 cackles wildly! Map ----- +----------------------------------------------------+ | ?????????????????###???#????## #????## ##?????? | | ????????????????? ???????# ##???# #?????? | | ###??????????????? ???#???# #???# #?????? | | #??????????????? ### ???# ##??## #?????? | | #???????????????? #??# ##### #?????? | | # #????????????????? ####### ##?????? | | ]##### #???????????? #???## #??????? | | # #????????????? ####???## #??????? | | ## ###?????????????### "#"#????# #??????? | | ## ##??????????????##"" ""#?????# #??????? | | ? #??????????????? ""#"#??????# ## #?????? | | ?# #??????????????###"#???????# #### ##?????? | | ?# #????????????##### #???????# ##??###??????? | | ?# #???????????##""#""#??###??# #???????????? | | ??# ???????????#""""" #### ##### ######???????? | | ??# #?????????# """ " ## ## # #% ##??????? | | ??# #?????????######""" " = ^^^#??????? | | ?## #???????## ####### ^ ^#??????? | | ?# ??????## #!# # ## # # #??????? | | ?# ####### "" ####" " "#??????? | | ?# "" " "" ##?# "#??????? | | ?## ## ## ## #### " ##??????? | | ???# ## ## ############ %## "" #??????? | | ???# """####?####>##### && #"" #?????? | | ???## ##""" % ""## ####" #?????? | | ????# #"% " @ ### ##?# #?????? | | ????####### ; % #?## ##?# ##?????? | | ??????????## ## =[#### #??##??????? | | ??????###??## ##s t% !%## #??????????? | | ?????## #??## ; =## #??????????? | | ???### #?## ###; ##### ####???????? | | ???# ## # # #???# #???????? | | ???# #### # ## ##???????? | | ???# ##### ## #????????? | | ???## ## # ## #????????? | | ????## # ??## #????????? | | ?????### #?????# ## #????????? | | ???????## #?? ### ##????????? | | ????????## ##?? ?# #?????????? | | ??##?????## ##???? ### #### #?????????? | | ### #????## #?????? ??## ?## ###???????? | | # ##?### #####??????????##### ##??????? | | ""### ##????????????????## #??????? | | "" ##???????????????## #??????? | | "" #??????######???# #### ##??????? | | ##"" #??????# ##?## ##??# #???????? | | ##"" #?????## ### ##??##???????? | | ##?????# #???????????? | | #??????# #???????????? | | ##??????# #???????????? | +----------------------------------------------------+ Best States ------------- Heat Dissipation 39 Energy Generation 18 Energy Capacity 310 Matter Stores 300 Matter Capacity 300 Sight Range 20 Terrain Scan Density 10 Evasion (%) 44 Recoil Reduction 2 Item Schematics ----------------- None Robot Schematics ------------------ None Fabricated ------------ Nothing Repaired ---------- Nothing Studied --------- None Alien Tech Used ----------------- None Achievements -------------- None Challenges ------------ None Game ------ Seed AssembledDataWyrmscale Manual? 0 Play Time 00:17:47 Cumulative 273.2 hours Start 2026.07.12 @ 17:29:05 End 2026.07.12 @ 17:47:05 Sessions 1 Manual Loads 0 Difficulty Rogue Special Mode None Game No. 130 Rogue 130 Adventurer 0 Explorer 0 Win Type - Total 17 Types 13/1/1/1/0/0/0/0/0/1 Lore% 76 Gallery% 73 Achievement% 72 Wizard Run 0 Options --------- Layout 0 ASCII 0 Keyboard 1 Movement Arrows Keybinds 0 Fullscreen 2 Font 18/SmallcapsGlow Map View 76x50 Zoom Use 0% Tactical HUD 1 Map Filters NONE Filters NONE Steam 1 RUN: 9e5c289c-ce21-4670-95eb-42b352607369